Workbook

Sheet Tableau 1
A1: Tableau 1 : Collections de la BnF au 31 décembre 2020
B3: 2020
A4: Livres et recueils | B4: 15700000
A5: Périodiques (titres) | B5: 400000
A6: Manuscrits | B6: 370000
A7: Estampes et photographies | B7: 15800000
A8: Partitions | B8: 2000000
A9: Cartes, plans, globes | B9: 900000
A10: Monnaies et jetons | B10: 440000
A11: Médailles | B11: 150000
A12: Autres objets | B12: 60000
A13: Documents relatifs aux spectacles | B13: 3000000
A14: Enregistrement sonores | B14: 1600000
A15: Vidéogrammes | B15: 350000
A16: Multimédias | B16: 180000
A17: Archives du web (en fichiers collectés (URL)) | B17: 40000000000
A18: En teraoctets | B18: 1400

Sheet Tableau 2
A1: Tableau 2 : Principales entrées par dépôt légal à la BnF
A2: En nombre de dépôts
A4: Type de documents | B4: Dépôt légal éditeur
B5: 2017 | C5: 2018 | D5: 2019 | E5: 2020
A6: Livres | B6: 81263 | C6: 82313 | D6: 79582 | E6: 64121
A7: Livres numériques | D7: 476 | E7: 63
A8: Périodiques | B8: 245420 | C8: 219766 | D8: 212661 | E8: 178816
A9: Brochures et publications diverses | B9: 13025 | C9: 15496 | D9: 11484 | E9: 7732
A10: Son | B10: 8230 | C10: 7733 | D10: 8071 | E10: 8704
A11: dont son dématérialisé | E11: 4460
A12: Vidéogrammes | B12: 10230 | C12: 5770 | D12: 9620 | E12: 5037
A13: Multisupports | B13: 1410 | C13: 1320 | D13: 1264 | E13: 743
A14: Multimédias | B14: 1621 | C14: 1686 | D14: 1420 | E14: 1745
A15: Cartes et plans | B15: 2263 | C15: 1878 | D15: =2064+234 -> 2298 | E15: 1222
A16: Estampes | B16: 282 | C16: 374 | D16: 292 | E16: 250
A17: Livres d'artiste | B17: 54 | C17: 34 | D17: 61 | E17: 44
A18: Photographies | B18: 87 | C18: 460 | D18: 236 | E18: 292
A19: Monnaies | D19: 77 | E19: 35
A20: Affiches illustrées | B20: 331 | C20: 1034 | D20: 746 | E20: 426
A21: Imagerie (cartes postales) | B21: 8971 | C21: 7632 | D21: 4546 | E21: 2598
A22: Partitions | B22: 2121 | C22: 2232 | D22: 1492 | E22: 1516
A23: Internet* | B23: 2.2 | C23: 2.7 | D23: 3.1 | E23: 3.45
A24: Dont collectes larges | B24: 1.4 | C24: 2.1 | D24: 2.3 | E24: 2.65
A25: Dont collectes ciblées | B25: 0.8 | C25: 0.5 | D25: 0.8 | E25: 0.8
A26: *en milliards de fichiers web (URL)

Sheet Tableau 3
A1: Tableau 3 : Monographies entrées par achats, dons, échanges
A2: En nombre de titres
B4: Acquisitions d’ouvrages
B5: 2017 | C5: 2018 | D5: 2019 | E5: 2020
A6: Achats | B6: 42590 | C6: 49995 | D6: 54230 | E6: 46448
A7: Dons | B7: 6464 | C7: 7000 | D7: 7421 | E7: 5617
A8: Échanges | B8: 1673 | C8: 2505 | D8: 1308 | E8: 977
A9: Total papier | B9: =SUM(B6:B8) -> 50727 | C9: =SUM(C6:C8) -> 59500 | D9: =SUM(D6:D8) -> 62959 | E9: =SUM(E6:E8) -> 53042
A10: Acquisitions numériques* | B10: 2297 | C10: 2057 | D10: 1868 | E10: 1318

Sheet Tableau 4
A1: Tableau 4 : Périodiques entrés par achats, dons, échanges
A2: En nombre de titres
B4: Acquisitions de périodiques (en nombre de titres)
B5: 2017 | C5: 2018 | D5: 2019 | E5: 2020
A6: Achats | B6: 5590 | C6: 5584 | D6: 5552 | E6: 4394
A7: Dons | B7: 1073 | C7: 1205 | D7: 958 | E7: 936
A8: Echanges | B8: 769 | C8: 673 | D8: 634 | E8: 589
A9: Total papier | B9: =SUM(B6:B8) -> 7432 | C9: =SUM(C6:C8) -> 7462 | D9: =SUM(D6:D8) -> 7144 | E9: =SUM(E6:E8) -> 5919
A10: Acquisitions numériques | B10: courant + rétrospectif de profondeur historique variable

Sheet Tableau 5
A1: Tableau 5 : Documents spécialisés entrés par achats, dons et autres modes d’entrées
A4: Catégories des documents reçus | B4: Achats | E4: Dons et autres modes d’entrées | H4: Total
B5: 2018 | C5: 2019 | D5: 2020 | E5: 2018 | F5: 2019 | G5: 2020 | H5: 2018 | I5: 2019 | J5: 2020
A6: Affiches | B6: 1 | C6: 25 | D6: 1 | E6: 1613 | F6: 3665 | G6: 488 | H6: =B6+E6 -> 1614 | I6: 3690 | J6: =D6+G6 -> 489
A7: Cartes, atlas et globes | B7: 881 | C7: 825 | D7: 877 | E7: 247 | F7: 10064 | G7: 44 | H7: 1128 | I7: 10889 | J7: =D7+G7 -> 921
A8: Catalogues de ventes et de libraires | B8: 5 | C8: 0 | D8: 0 | E8: 1007 | F8: 441 | G8: 224 | H8: 1012 | I8: 441 | J8: 224
A9: Costumes et accessoires | B9: 42 | C9: 0 | D9: 0 | F9: 19 | G9: 2 | H9: 42 | I9: 19 | J9: 2
A10: Dessins et dessins de presse | B10: 917 | C10: 688 | D10: 131 | E10: 1621 | F10: 38 | G10: 267 | H10: 2538 | I10: 726 | J10: 398
A11: Documents sonores (phonogrammes) | B11: 1924 | C11: 1887 | D11: 2398 | E11: 1603 | F11: 775 | G11: 675 | H11: 3527 | I11: 2662 | J11: 3073
A12: Dossiers de presse | C12: 0 | D12: 0 | E12: 354 | F12: 412 | G12: 120 | H12: 354 | I12: 412 | J12: 120
A13: Éphémères | C13: 0 | D13: 0 | E13: 45 | F13: 0 | G13: 163 | J13: 163
A14: Estampes | B14: 52 | C14: 424 | D14: 61 | E14: 732 | F14: 1121 | G14: 59 | H14: 784 | I14: 1545 | J14: 120
A15: Imagerie (cartes postales) | C15: 0 | D15: 0 | E15: 7643 | F15: 239 | G15: 0 | H15: 7643 | I15: 239 | J15: 0
A16: Images animées (vidéogrammes) | B16: 1256 | C16: 1087 | D16: 1675 | E16: 13232 | F16: 5822 | G16: 7927 | H16: 14488 | I16: 6909 | J16: 9602
A17: Livres d’artistes & graphiques | B17: 47 | C17: 1 | D17: 41 | F17: 0 | G17: 3 | H17: 47 | I17: 1 | J17: 44
A18: Manuscrits | B18: 359 | C18: 166 | D18: 100 | E18: 477 | F18: 51 | G18: 1092 | H18: 836 | I18: 217 | J18: 1192
A19: Maquettes de spectacle | B19: 7 | C19: 114 | D19: 91 | E19: 2 | F19: 4320 | G19: 30 | H19: 9 | I19: 4434 | J19: 121
A20: Monnaies et médailles | B20: 44 | C20: 0 | D20: 1 | E20: 13 | F20: 0 | G20: 176 | H20: 57 | I20: 0 | J20: 177
A21: Multimédia mono et multisupport | B21: 363 | C21: 249 | D21: 241 | E21: 482 | F21: 301 | G21: 55 | H21: 845 | I21: 550 | J21: 296
A22: Musique imprimée | B22: 124 | C22: 539 | D22: 446 | E22: 73 | F22: 94 | G22: 42 | H22: 197 | I22: 633 | J22: 488
A23: Objets | B23: 2 | C23: 222 | D23: 4 | E23: 265 | F23: 18 | G23: 17 | H23: =B23+E23 -> 267 | I23: =C23+F23 -> 240 | J23: 21
A24: Photos du XIXe siècle | B24: 120 | C24: 49 | D24: 125 | E24: 857 | F24: 42 | G24: 1613 | H24: 977 | I24: 91 | J24: 1738
A25: Photos des XXe et XXIe siècles | B25: 255353 | C25: 225480 | D25: 71012 | E25: 52394 | F25: 20010 | G25: 29681 | H25: 307747 | I25: 245490 | J25: 100693
A26: Portfolios (estampes et photos) | B26: 4 | C26: 0 | D26: 2 | F26: 0 | H26: 4 | I26: 0 | J26: 2
A27: Programmes de spectacles | C27: 0 | D27: 0 | E27: 6341 | F27: 6218 | G27: 2877 | H27: 6341 | I27: 6218 | J27: 2877
A28: Timbres | C28: 0 | D28: 0 | F28: 0 | G28: 1 | H28: 0 | I28: 0 | J28: 1

Sheet Tableau 6
A1: Tableau 6 : Numérisation (nombre d’images numériques validées)
B3: 2017 | C3: 2018 | D3: 2019 | E3: 2020
A4: Nombre d'images produites en interne* | B4: =1880605+848960 -> 2729565 | C4: 2492838 | D4: 2211000 | E4: 1975816
A5: Nombre d'images produites sur marché | B5: 15130841 | C5: 11800472 | D5: 11604000 | E5: 7664279
A6: Total | B6: =SUM(B4:B5) -> 17860406 | C6: =SUM(C4:C5) -> 14293310 | D6: 13815000 | E6: =SUM(E4:E5) -> 9640095
A8: *l’ensemble de la production interne (départements de la Conservation et de la Reproduction) est ici comptabilisé à l’entrée des chaînes permettant sa diffusion dans Gallica (et non en sortie d’atelier comme en 1.3 du rapport).

Sheet Tableau 7
A1: Tableau 7 : Catalogage courant du dépôt légal des livres et périodiques
B3: 2017 | C3: 2018 | D3: 2019 | E3: 2020
A4: Notices bibliographiques créées | B4: 81793 | C4: 88613 | D4: 85138 | E4: 53502
A5: Notices bibliographiques mises à jour (enrichissement et contrôle) | B5: 53654 | C5: 63712 | D5: =15131+46506 -> 61637 | E5: 39420
A6: Notices d’autorité créées | B6: 22196 | C6: 24543 | D6: 22350 | E6: 14444
A7: Notices d’autorité mises à jour | B7: 20275 | C7: 25499 | D7: =11827+13280 -> 25107 | E7: 15956
A8: Total des notices créées | B8: =B4+B6 -> 103989 | C8: =C4+C6 -> 113156 | D8: =D4+D6 -> 107488 | E8: =E4+E6 -> 67946
A9: Total des notices mises à jour | B9: =B5+B7 -> 73929 | C9: 89211 | D9: 86744 | E9: =E5+E7 -> 55376

Sheet Tableau 8
A1: Tableau 8 : Catalogage courant et rétrospectif par les départements de collections
B3: 2017 | C3: 2018 | D3: 2019 | E3: 2020
A4: Notices bibliographiques produites* | B4: 95791 | C4: 94476 | D4: 100732 | E4: 87358
A5: Notices d’autorité produites | B5: 48772 | C5: 49775 | D5: 46612 | E5: 39955
A6: Total des notices produites | B6: =SUM(B4:B5) -> 144563 | C6: =SUM(C4:C5) -> 144251 | D6: =SUM(D4:D5) -> 147344 | E6: =SUM(E4:E5) -> 127313
A8: *Notices créées ou dérivées

Sheet Tableau 9
A1: Tableau 9 : Dérivation de notices pour les monographies imprimées
B3: 2017 | C3: 2018 | D3: 2019 | E3: 2020
A4: Notices produites | B4: 44293 | C4: 43656 | D4: 47178 | E4: 39360
A5: Notices dérivées | B5: 22370 | C5: 24821 | D5: 27651 | E5: 22627
A6: % de notices dérivées | B6: =B5/B4 -> 0.5050459441 | C6: =C5/C4 -> 0.5685587319 | D6: =D5/D4 -> 0.5860994531 | E6: =E5/E4 -> 0.5748729675

Sheet Tableau 10
A1: Tableau 10 : Conservation curative
B3: 2017 | C3: 2018 | D3: 2019 | E3: 2020
A4: Nombre de volumes réparés physiquement* | B4: =4188+3761 -> 7949 | C4: =7698+488 -> 8186 | D4: =7043+196 -> 7239 | E4: =5203+353 -> 5556
A5: Nombre de documents en feuille réparés* | B5: 239496 | C5: =242177+24557 -> 266734 | D5: =204826+10398 -> 215224 | E5: =263000+14474 -> 277474
A6: Reliure main (nombre de volumes) | B6: 1418 | C6: 1322 | D6: 988 | E6: 716
A7: Désinfection (m3) | B7: 4 | C7: 18 | D7: 16 | E7: 28
A8: Objets, maquettes, divers* | B8: 14597 | C8: 9339 | D8: =519+1500 -> 2019 | E8: =619+1724 -> 2343
A9: Dorures / titrages (nombre de volumes) | B9: 647 | C9: 1152 | D9: 990 | E9: 674
A10: Documents Son | C10: 984 | D10: 1390 | E10: 1299
A11: Documents Vidéo | C11: 3 | D11: 3 | E11: 9
A12: Documents Objet audiovisuel | D12: 6

Sheet Tableau 11
A1: Tableau 11 : Conservation préventive
B3: 2017 | C3: 2018 | D3: 2019 | E3: 2020
A4: Reliure mécanisée (volumes commandés) | B4: 24050 | C4: 24879 | D4: 22893 | E4: 21303
A5: Conditionnement sur mesure (documents)* | B5: 16432 | C5: 15459 | D5: 16473 | E5: 9242
A6: Équipement léger (documents magasin) | B6: 6829 | C6: 6121 | D6: 5465 | E6: 3396
A7: Désacidification (en u.c.) | B7: 26660 | C7: 2243 | D7: 5500 | E7: 4572
A8: *hors équipements réalisés par les départements de collections
